fUST/lending_fUST_20250103
["ID","MTS","AMOUNT","RATE_DAILY","PERIOD"]
[347517986,1735899046518,-151.0,0.00019176,2]
[347517988,1735899046527,-151.0,0.00019176,2]
[347517990,1735899046536,-151.0,0.00019176,2]
[347517992,1735899046545,-646163.64806969,0.00019177,4]
[347517995,1735899046562,-372.952584,0.00019177,4]
[347518052,1735899047090,316.04252,0.00013973,2]
[347521551,1735899158580,151.0,0.00025,120]
[347521610,1735900116032,310.797492,0.00013973,2]
[347521643,1735900232404,-269.65197422,0.00014114,2]
[347521645,1735900232414,-565.55536946,0.000149,2]
[347521647,1735900232424,-2428.59249641,0.00017,2]
[347521649,1735900232435,-460.98225799,0.00017,2]
[347521651,1735900232445,-275.8091475,0.00017635,2]
[347521653,1735900232455,-4261.10859451,0.00017679,2]
[347521838,1735900238096,-1016.70232699,0.00017679,2]
[347521839,1735900238105,-1155.25193715,0.00017679,2]
[347521840,1735900238115,-512.99408268,0.00017779,2]
[347521841,1735900238124,-482.48650287,0.00017779,2]
[347521842,1735900238133,-687.56515031,0.00018,2]
[347521843,1735900238187,-4262.51920874,0.00018,2]
[347521844,1735900238196,-587.367,0.0001822,2]
[347521845,1735900238205,-1277.65144632,0.00018748,2]
[347521846,1735900238218,-1510.8924315,0.00018748,2]
[347521872,1735900243329,-1335.525,0.00018748,2]
[347521959,1735900246256,-4357.09028374,0.00018748,2]
[347521960,1735900246346,-1994.21820083,0.00018748,2]
[347521968,1735900430689,1017.0,0.00025,120]
[347521972,1735900505141,151.0,0.0001,2]
[347521973,1735900505963,166.1,0.00010548,2]
[347521974,1735900506617,182.71,0.00011096,2]
[347521975,1735900507265,200.981,0.00011644,2]
[347521976,1735900507914,221.0791,0.00012192,2]
[347521977,1735900508550,282.99098274,0.0001274,2]
[347522004,1735901174249,305.286861,0.00013973,2]
[347522036,1735901432480,-562.642,0.00017858,2]
[347522038,1735901432491,-431.03133107,0.0001812,2]
[347522041,1735901432503,-479.0,0.0001812,2]
[347522045,1735901432538,-1197.50864212,0.0001812,2]
[347522047,1735901432548,-562.642,0.0001822,2]
[347522049,1735901432558,-2339.97191443,0.00018275,2]
[347522359,1735901440372,-533.18236436,0.00018275,2]
[347522446,1735901443495,-684.7004628,0.00018092,2]
[347522448,1735901443507,-284.35043619,0.00018275,2]
[347522450,1735901443516,-300.0,0.0001847,2]
[347522452,1735901443526,-10828.07398704,0.00018471,2]
[347522454,1735901443536,-500.0,0.00018815,5]
[347522456,1735901443546,-949.90730562,0.000189,2]
[347522457,1735901443556,-2649.15596893,0.000189,2]
[347522458,1735901443565,-352.7299908,0.000189,2]
[347522459,1735901443575,-153.6400067,0.000189,2]
[347522460,1735901443588,-366.6636828,0.00018984,2]
[347522462,1735901443597,-164.054,0.00018984,2]
[347522464,1735901443606,-499.0,0.00018999,2]
[347522466,1735901443617,-29217.03254415,0.00019,2]
[347523022,1735902059381,299.550299,0.00013973,2]
[347523023,1735902091422,-1100.0,0.00015003,2]
[347523024,1735902091444,-1100.0,0.00017743,2]
[347523025,1735902091466,-539.499,0.0001822,2]
[347523026,1735902091487,-500.0,0.00018366,5]
[347523027,1735902091510,-368.102,0.00018682,2]
[347523028,1735902091532,-191.43045937,0.00018684,2]
[347523029,1735902091553,-300.0,0.0001878,2]
[347523030,1735902091576,-437.27323516,0.00018784,2]
[347523031,1735902091599,-10828.07398705,0.00018788,2]
[347523032,1735902091620,-183.3318414,0.00018984,2]
[347523033,1735902091643,-164.055,0.00018999,2]
[347523034,1735902091665,-499.0,0.00018999,2]
[347523035,1735902091686,-4942.35186965,0.00019,2]
[347523036,1735902091709,-72071.58705926,0.00019,2]
[347523037,1735902091732,-16775.29554811,0.00019,2]
[347523066,1735902632706,-900.0,0.00015003,2]
[347523068,1735902632716,-344.73966502,0.00017743,2]
[347523070,1735902632726,-25.79309115,0.00018682,2]
[347523072,1735902632737,-2062.20690885,0.00018682,2]
[347523075,1735902632747,-183.3318414,0.00018984,2]
[347523077,1735902632757,-300.0,0.00018989,2]
[347523078,1735902632767,-9638.78197644,0.0001899,2]
[347523645,1735902638543,-499.77566816,0.0001899,2]
[347523647,1735902638555,-10005.77914135,0.0001899,2]
[347523653,1735902638595,-7050.36087845,0.0001899,2]
[347523655,1735902638607,-844.19082374,0.0001899,2]
[347523657,1735902638618,-2990.084995,0.0001899,2]
[347523659,1735902638631,-3157.4254304,0.0001899,2]
[347524200,1735902643768,-29813.60108646,0.0001899,2]
[347524201,1735902643779,-499.0,0.00018999,2]
[347524202,1735902643788,-7305.18611967,0.00019,2]
[347524203,1735902643799,-761.5,0.00019,2]
[347524204,1735902643811,-3000.0,0.00019,2]
[347524426,1735902646692,-1024.56561077,0.000188,2]
[347524427,1735902646702,-1000.25833222,0.00019,2]
[347524428,1735902646711,-6021.0,0.00019,2]
[347524429,1735902646721,-151.14,0.00019,2]
[347524430,1735902646730,-10000.0,0.00019,2]
[347524431,1735902646740,-10000.0,0.00019,2]
[347524432,1735902646749,-10000.0,0.00019,2]
[347524433,1735902646759,-10000.0,0.00019,2]
[347524434,1735902646768,-10000.0,0.00019,2]
[347524435,1735902646777,-10000.0,0.00019,2]
[347524436,1735902646787,-10000.0,0.00019,2]
[347524437,1735902646798,-3705.0,0.00019,2]
[347524438,1735902646807,-302.84859393,0.00019,2]
[347524439,1735902646817,-2471.17593483,0.00019074,2]
[347524440,1735902646826,-36035.79352963,0.00019074,2]
[347524441,1735902646836,-529.54316298,0.00019074,2]
[347524442,1735902646845,-500.0,0.00019074,2]
[347524443,1735902646855,-163.18945706,0.00019074,2]
[347524444,1735902646864,-500.0,0.00019074,2]
[347524445,1735902646874,-500.0,0.00019074,2]
[347524446,1735902646884,-165.21065165,0.00019074,2]
[347524447,1735902646893,-500.0,0.00019074,2]
[347524448,1735902646902,-329.17913792,0.00019074,2]
[347524449,1735902646912,-500.0,0.00019074,2]
[347524450,1735902646922,-500.0,0.00019074,2]
[347524451,1735902646931,-375.63186919,0.00019074,2]
[347524452,1735902646940,-500.0,0.00019074,2]
[347524453,1735902646949,-500.0,0.00019074,2]
[347524454,1735902646958,-506.64599152,0.00019074,2]
[347524455,1735902646968,-500.0,0.00019074,2]
[347524456,1735902646977,-522.41371719,0.00019074,2]
[347524457,1735902646987,-184.07760217,0.00019074,2]
[347524459,1735902646996,-38288.22383588,0.000191,2]
[347524460,1735902647005,-273.1169139,0.000191,2]
[347524462,1735902647015,-705.4047471,0.000191,2]
[347524464,1735902647024,-307.253762,0.000191,2]
[347524466,1735902647034,-277.8954362,0.000191,2]
[347524468,1735902647043,-151.0,0.000191,2]
[347524469,1735902647052,-1060.0,0.000191,8]
[347524470,1735902647062,-352.7299908,0.000191,2]
[347524471,1735902647071,-153.0,0.000191,2]
[347524472,1735902647081,-153.6400067,0.000191,2]
[347524473,1735902647091,-412.708458,0.000191,2]
[347524474,1735902647100,-150.300979,0.000191,2]
[347524475,1735902647110,-352.7299908,0.000191,2]
[347524476,1735902647119,-153.6400067,0.000191,2]
[347524477,1735902647130,-395.395013,0.000191,2]
[347524478,1735902647139,-352.7299908,0.000191,2]
[347524479,1735902647148,-352.7299908,0.000191,2]
[347524480,1735902647157,-352.7299908,0.000191,2]
[347524481,1735902647167,-151.0,0.000191,2]
[347524482,1735902647176,-151.0,0.000191,2]
[347524483,1735902647186,-352.7299908,0.000191,2]
[347524484,1735902647196,-352.7299908,0.000191,2]
[347524485,1735902647205,-352.7299908,0.000191,2]
[347524486,1735902647216,-349.6188907,0.000191,2]
[347524487,1735902647226,-315.00623629,0.00019173,2]
[347524488,1735902647235,-155.58848964,0.00019173,2]
[347524489,1735902647244,-500.0,0.00019173,2]
[347524490,1735902647254,-271.03499006,0.00019173,2]
[347524491,1735902647264,-500.0,0.00019173,2]
[347524492,1735902647274,-500.2944979,0.00019173,2]
[347524493,1735902647284,-1250.41701272,0.00019175,2]
[347524494,1735902647296,-155.06166582,0.00019176,2]
[347524495,1735902647306,-386.79076684,0.00019176,2]
[347524496,1735902647315,-147940.95783179,0.00019176,2]
[347524497,1735902647325,-649466.42096619,0.00019177,4]
[347524498,1735902647477,-2009.69945286,0.00019177,4]
[347524499,1735902647488,-24518.38532001,0.00019177,4]
[347524500,1735902647500,-15556.96705877,0.00019177,4]
[347524663,1735902886160,3353.88828213,0.00025,120]
[347524664,1735903068012,293.624176,0.00013973,2]
[347524756,1735903832923,-516.831,0.00017154,2]
[347524758,1735903832933,-516.831,0.0001822,2]
[347524760,1735903832942,-589.1296746,0.00018795,2]
[347524764,1735903832969,-1247.550005,0.00018795,2]
[347525013,1735903835428,-577.37,0.00018795,2]
[347525342,1735903838765,-3055.31401227,0.00018795,2]
[347525344,1735903838775,-207.11169366,0.00018999,2]
[347525347,1735903838787,-92.88830634,0.00018999,2]
[347525349,1735903838796,-8215.55854316,0.00019,3]
[347525351,1735903838807,-7331.40768153,0.00019,3]
[347525353,1735903838818,-281.138,0.00019,3]
[347525355,1735903838829,-1409.56702392,0.00019,3]
[347525410,1735903840797,-3276.69999998,0.00019,3]
[347525411,1735903840848,-1281.25927731,0.00019,3]
[347525412,1735903840862,-1984.62006313,0.00019,3]
[347525413,1735903840876,-3302.47134826,0.00019,3]
[347525521,1735903843847,-5207.41074273,0.00019,3]
[347525526,1735903843890,-1202.73336733,0.00019,3]
[347525827,1735903846880,-13832.21248,0.00019,3]
[347525833,1735903846929,-24145.12626131,0.00019,3]
[347525835,1735903846947,-16322.69560229,0.00019,3]
[347525837,1735903846957,-2521.44766631,0.00019077,2]
[347525839,1735903846966,-956.51666582,0.00019077,2]
[347525841,1735903846977,-500.0,0.00019173,2]
[347525843,1735903846986,-500.0,0.00019173,2]
[347525845,1735903846996,-500.0,0.00019173,2]
[347525847,1735903847005,-151.14,0.00019173,2]
[347525849,1735903847014,-266.68127359,0.00019173,2]
[347525851,1735903847024,-500.0,0.00019173,2]
[347525853,1735903847034,-500.0,0.00019173,2]
[347525855,1735903847044,-215.15652756,0.00019173,2]
[347525857,1735903847053,-500.0,0.00019173,2]
[347525859,1735903847062,-281.90330811,0.00019173,2]
[347525861,1735903847072,-500.54350148,0.00019173,2]
[347525863,1735903847082,-179.57436662,0.00019176,2]
[347525865,1735903847091,-169.15707969,0.00019176,2]
[347525867,1735903847102,-187.11973358,0.00019176,2]
[347525869,1735903847112,-164.055,0.00019176,2]
[347525871,1735903847121,-499.0,0.00019176,2]
[347525873,1735903847130,-1235.58796741,0.00019177,2]
[347525875,1735903847140,-2577.06646528,0.00019177,2]
[347530417,1735904094500,287.54179,0.00013973,2]
[347530448,1735905013049,301.333582,0.00013973,2]
[347530595,1735905035072,-184.9005585,0.00017838,2]
[347530596,1735905035082,-184.9005585,0.00018018,2]
[347530597,1735905035091,-521.3039471,0.00018098,2]
[347530598,1735905035101,-361.23109798,0.0001812,2]
[347530599,1735905035112,-514.835,0.0001822,2]
[347530600,1735905035121,-299.371888,0.00018985,2]
[347530601,1735905035131,-302.57643833,0.00019,2]
[347530602,1735905035140,-300.0,0.00019076,2]
[347530603,1735905035150,-714.08036528,0.00019077,2]
[347530604,1735905035159,-932.92147165,0.00019077,2]
[347530605,1735905035169,-1007.0,0.000191,8]
[347530607,1735905035178,-153.0,0.000191,2]
[347530609,1735905035187,-153.6400067,0.000191,2]
[347530611,1735905035197,-352.7299908,0.000191,2]
[347530612,1735905035206,-153.0,0.000191,2]
[347530613,1735905035216,-214.5150061,0.000191,2]
[347530614,1735905035226,-153.0,0.000191,2]
[347530615,1735905035235,-214.5150061,0.000191,2]
[347530616,1735905035244,-352.7299908,0.000191,2]
[347530617,1735905035258,-153.0,0.000191,2]
[347530618,1735905035267,-153.6400067,0.000191,2]
[347530619,1735905035276,-153.6400067,0.000191,2]
[347530620,1735905035285,-153.0,0.000191,2]
[347530621,1735905035295,-214.515006,0.000191,2]
[347530622,1735905035304,-352.7299908,0.000191,2]
[347530623,1735905035313,-500.0,0.00019173,2]
[347530624,1735905035322,-500.0,0.00019173,2]
[347530625,1735905035332,-344.06707185,0.00019173,2]
[347530626,1735905035342,-500.0,0.00019173,2]
[347530627,1735905035351,-500.0,0.00019173,2]
[347530628,1735905035360,-500.0,0.00019176,2]
[347530629,1735905035369,-207.91081508,0.00019176,2]
[347530630,1735905035378,-402.63798965,0.00019176,2]
[347530631,1735905035388,-500.0,0.00019176,2]
[347530632,1735905035397,-500.0,0.00019176,2]
[347530633,1735905035408,-500.0,0.00019176,2]
[347530634,1735905035417,-500.0,0.00019176,2]
[347530635,1735905035427,-159.8236228,0.00019176,2]
[347530636,1735905035436,-166.007,0.00019176,2]
[347530637,1735905035446,-500.0,0.00019176,5]
[347530638,1735905035455,-499.0,0.00019176,2]
[347530639,1735905035464,-808.15750464,0.00019177,2]
[347530640,1735905035474,-20107.61158056,0.00019177,2]
[347530641,1735905035483,-1974.95393358,0.00019177,4]
[347530642,1735905035495,-10339.08782654,0.00019177,4]
[347530801,1735905040075,-453.40201646,0.00019177,4]
[347530940,1735905041587,-3495.22345151,0.00019177,4]
[347531367,1735905046292,-558.08349353,0.00018985,2]
[347531369,1735905046303,-3097.19717734,0.00019177,4]
[347536221,1735906183263,294.435784,0.00013973,2]
[347536433,1735906234235,-373.4321453,0.00017154,2]
[347536435,1735906234245,-373.4321453,0.00017327,2]
[347536437,1735906234255,-493.112,0.0001822,2]
[347536440,1735906234265,-302.78807257,0.00019,2]
[347536441,1735906234274,-816.30628765,0.00019077,2]
[347536444,1735906234284,-1578.0452587,0.00019078,2]
[347536445,1735906234294,-957.0,0.000191,8]
[347536446,1735906234304,-1000.0,0.00019165,2]
[347536447,1735906234313,-500.0,0.00019173,2]
[347536448,1735906234322,-500.0,0.00019173,2]
[347536449,1735906234332,-166.007,0.00019176,2]
[347536450,1735906234341,-499.0,0.00019176,2]
[347536451,1735906234350,-300.0,0.00019176,2]
[347536452,1735906234360,-404.07875232,0.00019177,2]
[347536453,1735906234370,-79539.47654563,0.00019177,2]
[347536454,1735906234379,-151.15,0.00019177,2]
[347536455,1735906234389,-500.0,0.00019177,2]
[347536456,1735906234399,-152545.55979253,0.00019177,4]
[347536457,1735906234411,-600.0,0.00019177,4]
[347536458,1735906234423,-19305.16528069,0.00019177,4]
[347536467,1735906237944,-373.4321453,0.00016982,2]
[347536468,1735906237954,-902.7792847,0.00019177,4]
[347536469,1735906237966,-451.138672,0.00019177,4]
[347536639,1735906240564,-3910.02884665,0.00019177,4]
[347536716,1735906243140,-394.0,0.00018682,2]
[347536717,1735906243150,-1172.75,0.00019177,4]
[347536727,1735906246086,-1161.68609302,0.00018985,2]
[347536728,1735906246097,-528.37773203,0.00019177,4]
[347537029,1735906568955,-457.20450888,0.00017858,2]
[347537030,1735906568979,-457.20450888,0.00018038,2]
[347537031,1735906569004,-491.151,0.0001822,2]
[347537032,1735906569027,-600.0,0.00018937,2]
[347537033,1735906569050,-1994.43998224,0.0001895,2]
[347537051,1735907043174,298.610923,0.00013973,2]
[347537080,1735907418435,-965.54860931,0.00018021,2]
[347537081,1735907418460,-470.755,0.0001822,2]
[347537082,1735907418483,-293.31,0.00018816,2]
[347537083,1735907418505,-200.97570884,0.00018894,2]
[347537084,1735907418528,-1000.0,0.00018897,2]
[347537085,1735907418552,-1000.0,0.00018905,2]
[347537086,1735907418577,-600.0,0.00018937,2]
[347537087,1735907418600,-299.3718881,0.00018985,2]
[347537088,1735907418624,-1000.0,0.00018987,2]
[347537089,1735907418648,-302.78807257,0.00019,2]
[347537090,1735907418671,-302.57643836,0.00019,2]
[347537091,1735907418694,-198.3,0.00019065,2]
[347537092,1735907418718,-195.0,0.00019065,2]
[347537093,1735907418741,-1288.5586693,0.00019068,2]
[347537094,1735907418766,-300.0,0.00019076,2]
[347537095,1735907418790,-571.26429224,0.00019077,2]
[347537096,1735907418817,-806.02713102,0.00019077,2]
[347537097,1735907418839,-150.0,0.000191,2]
[347537098,1735907418862,-1000.0,0.0001912,2]
[347537099,1735907418886,-1000.0,0.00019127,2]
[347537100,1735907418909,-600.0,0.00019134,2]
[347537101,1735907418932,-201.0,0.0001917,2]
[347537102,1735907418955,-500.0,0.00019173,2]
[347537103,1735907418977,-500.0,0.00019173,2]
[347537104,1735907419000,-167.959,0.00019176,2]
[347537105,1735907419024,-499.0,0.00019176,2]
[347537106,1735907419050,-12558.17054759,0.00019177,2]
[347537107,1735907419227,-70466.74172439,0.00019177,2]
[347537108,1735907419253,-500.0,0.00019177,2]
[347537109,1735907419279,-52062.65291828,0.00019177,4]
[347537134,1735907432359,-558.08349353,0.00017841,2]
[347537136,1735907432369,-250867.75998875,0.00019177,4]
[347537138,1735907432380,-6743.18617495,0.00019177,4]
[347537212,1735907438121,-4410.96717536,0.00019177,4]
[347537216,1735907438183,-151340.90034296,0.00019177,4]
[347537223,1735907438238,-27044.11913031,0.00019177,4]
[347537354,1735907440307,-1936.72,0.00019177,4]
[347537414,1735907443296,-300.07691523,0.00019177,4]
[347537422,1735907443355,-12072.09375,0.00019177,4]
[347537430,1735907443417,-2145.33832167,0.00019177,4]
[347537544,1735907446266,-6579.24594031,0.00019177,4]
[347537546,1735907446278,-9436.3,0.00019177,4]
[347537549,1735907446290,-282.25957541,0.00019177,4]
[347537553,1735907446324,-31836.92,0.00019177,4]
[347537940,1735907801001,151.0,0.00025,120]
[347537948,1735908069767,2000.0,0.00025,120]
[347537949,1735908072159,291.849258,0.00013973,2]
[347537966,1735908098244,2000.0,0.00025,120]
[347538004,1735908175336,5000.0,0.00025,120]
[347538012,1735908227230,2000.0,0.00025,120]
[347538013,1735908235342,2000.0,0.00025,120]
[347538023,1735908380432,4312.12,0.00025,120]
[347538044,1735908632421,-451.002,0.0001822,2]
[347538045,1735908632431,-1071.91045685,0.00018937,2]
[347538046,1735908632440,-909.0,0.000191,8]
[347538047,1735908632449,-226.49001693,0.00019149,2]
[347538048,1735908632479,-73.50998307,0.00019149,2]
[347538049,1735908632490,-167.96009972,0.0001915,2]
[347538050,1735908632500,-2088.0,0.0001915,2]
[347538051,1735908632509,-883.61565292,0.0001915,2]
[347538053,1735908632536,-611.09157135,0.0001915,2]
[347538055,1735908632549,-663.95,0.0001915,2]
[347538344,1735908640513,-162.34277573,0.0001915,2]
[347538345,1735908640522,-340.70722427,0.0001915,2]
[347538676,1735908646415,-1762.5000065,0.00019078,2]
[347540058,1735908931324,285.445734,0.00013973,2]
[347540064,1735909353485,1026.73127192,0.00025,120]
[347540070,1735909740812,500.0,0.00025,120]
[347540071,1735909751248,503.67915005,0.00025,120]
[347540072,1735909789776,271.173447,0.00013973,2]
[347540075,1735909814983,150.1061014,0.00025,120]
[347540098,1735909836164,-13001.34095258,0.00014995,2]
[347540099,1735909836174,-13001.34095258,0.00014995,2]
[347540100,1735909836183,-13001.34095258,0.00014997,2]
[347540101,1735909836195,-494.28523061,0.00016395,2]
[347540102,1735909836205,-494.28523061,0.00016561,2]
[347540103,1735909836222,-432.233,0.0001822,2]
[347540104,1735909836236,-2486.21951963,0.00018585,2]
[347540105,1735909836246,-394.0,0.00018629,2]
[347540106,1735909836256,-300.0,0.0001866,2]
[347540107,1735909836266,-6374.26703425,0.00018661,2]
[347540108,1735909836276,-38277.5516506,0.00018661,2]
[347540109,1735909836286,-9680.4236998,0.00018822,2]
[347540110,1735909836299,-849.40411303,0.00018822,2]
[347540111,1735909836311,-394.44469296,0.00018822,2]
[347540112,1735909836321,-185.80495885,0.00019077,2]
[347540113,1735909836331,-3681.0242896,0.00019078,2]
[347540114,1735909836340,-894.0,0.000191,8]
[347540115,1735909836350,-1443.343,0.0001915,2]
[347540116,1735909836359,-2321.0,0.0001915,2]
[347540117,1735909836369,-2486.21951956,0.00019153,2]
[347540118,1735909836379,-26371.60110123,0.0001917,3]
[347540119,1735909836389,-500.0,0.00019173,2]
[347540120,1735909836398,-500.0,0.00019173,2]
[347540121,1735909836408,-500.0,0.00019176,2]
[347540122,1735909836418,-650.55210854,0.00019176,2]
[347540123,1735909836428,-293.76756285,0.00019176,2]
[347540124,1735909836439,-599.29387817,0.00019176,2]
[347540125,1735909836452,-550.86606117,0.00019176,2]
[347540126,1735909836463,-525.06097868,0.00019176,2]
[347540127,1735909836473,-309.67436432,0.00019176,2]
[347540128,1735909836483,-499.0,0.00019176,2]
[347540129,1735909836492,-501.13278867,0.00019177,2]
[347540130,1735909836502,-288.3873651,0.00019177,2]
[347540131,1735909836512,-328694.94059417,0.00019177,4]
[347540132,1735909836524,-6392.731,0.00019177,4]
[347540133,1735909836536,-56702.9641452,0.00019177,4]
[347540134,1735909836554,-173349.99999967,0.00019177,4]
[347540215,1735909839071,-80881.20568701,0.00019177,4]
[347540217,1735909839083,-2139.4034361,0.00019177,4]
[347540219,1735909839094,-4339.68439942,0.00019177,4]
[347540654,1735909846931,-1391.93078907,0.00017457,2]
[347540700,1735910651033,266.394267,0.00013973,2]
[347540766,1735911031932,-215.70624645,0.00015139,2]
[347540768,1735911031942,-215.70624645,0.00015292,2]
[347540770,1735911031952,-215.70624645,0.00015446,2]
[347540772,1735911031962,-500.0,0.00016259,2]
[347540774,1735911031971,-500.0,0.00017115,2]
[347540776,1735911031981,-2256.2827179,0.00017634,2]
[347540778,1735911031990,-500.0,0.00018016,2]
[347540780,1735911032000,-352.002859,0.00018039,2]
[347540782,1735911032009,-414.115,0.0001822,2]
[347540784,1735911032018,-172.0,0.00018449,2]
[347540786,1735911032027,-172.0,0.00018449,2]
[347540788,1735911032037,-172.0,0.00018449,2]
[347540791,1735911032047,-172.0,0.00018449,2]
[347540793,1735911032056,-174.58,0.00018449,2]
[347540795,1735911032065,-300.0,0.00018915,2]
[347540797,1735911032075,-500.0,0.00018916,2]
[347540799,1735911032087,-10308.27214896,0.00019057,2]
[347540800,1735911032097,-1864.66463967,0.00019073,2]
[347540801,1735911032106,-1491.48963097,0.00019077,2]
[347540803,1735911032115,-1491.48963093,0.00019077,2]
[347540805,1735911032125,-1491.48963093,0.00019078,2]
[347540807,1735911032135,-1491.48963093,0.00019078,2]
[347540808,1735911032145,-1491.48963093,0.00019078,2]
[347540809,1735911032154,-81818.57826032,0.000191,2]
[347540810,1735911032167,-10432.06832518,0.000191,2]
[347540811,1735911032179,-15317.09580647,0.000191,2]
[347540812,1735911032196,-1528.58400604,0.000191,2]
[347540814,1735911034471,-293026.95466799,0.000191,2]
[347540815,1735911034480,-152.0,0.00019104,2]
[347540817,1735911034490,-2321.0,0.0001915,2]
[347540818,1735911034499,-166.94727028,0.00019173,2]
[347540819,1735911034508,-500.0,0.00019173,2]
[347540820,1735911034517,-500.0,0.00019173,2]
[347540821,1735911034530,-500.0,0.00019173,2]
[347540822,1735911034540,-500.0,0.00019173,2]
[347540823,1735911034549,-500.0,0.00019173,2]
[347540824,1735911034559,-500.0,0.00019173,2]
[347540825,1735911034569,-172.657,0.00019175,2]
[347540826,1735911034578,-500.0,0.00019176,5]
[347540827,1735911034589,-499.0,0.00019176,2]
[347540828,1735911034599,-131472.29873519,0.00019177,4]
[347540829,1735911034609,-500.0,0.00019177,2]
[347540830,1735911034619,-500.0,0.00019177,2]
[347540831,1735911034628,-161.68609302,0.00019177,2]
[347540832,1735911034637,-500.0,0.00019177,4]
[347540833,1735911034646,-519.39930446,0.00019177,4]
[347540834,1735911034656,-500.0,0.00019177,2]
[347540835,1735911034665,-500.0,0.00019177,2]
[347540836,1735911034675,-500.0,0.00019177,2]
[347540837,1735911034684,-500.0,0.00019177,2]
[347540838,1735911034693,-247.42126179,0.00019177,2]
[347540839,1735911034702,-500.0,0.00019177,2]
[347540840,1735911034711,-379.04443122,0.00019177,2]
[347540841,1735911034720,-542.34279751,0.00019177,2]
[347540842,1735911034730,-500.0,0.00019177,2]
[347540843,1735911034740,-248.56025814,0.00019177,2]
[347540844,1735911034749,-500.0,0.00019177,2]
[347540845,1735911034758,-500.0,0.00019177,2]
[347540846,1735911034767,-500.0,0.00019177,2]
[347540847,1735911034777,-500.0,0.00019177,2]
[347540848,1735911034786,-306.35349808,0.00019177,2]
[347540849,1735911034796,-536.7448927,0.00019177,2]
[347540850,1735911034805,-500.0,0.00019177,2]
[347540851,1735911034814,-151.0,0.00019178,2]
[347540852,1735911034823,-151.0,0.00019178,2]
[347540853,1735911034835,-151.0,0.00019178,2]
[347540854,1735911034844,-151.0,0.00019178,2]
[347540855,1735911034853,-151.0,0.00019178,2]
[347540856,1735911034862,-151.0,0.00019178,2]
[347540857,1735911034872,-151.0,0.00019178,2]
[347540858,1735911034881,-151.0,0.00019178,2]
[347540859,1735911034890,-151.0,0.00019178,2]
[347540860,1735911034899,-151.0,0.00019178,2]
[347540861,1735911034909,-151.0,0.00019178,2]
[347540862,1735911034918,-151.0,0.00019178,2]
[347540863,1735911034927,-217.45116,0.00019178,2]
[347540864,1735911034936,-151.0,0.00019178,2]
[347540865,1735911034945,-151.0,0.00019178,2]
[347540866,1735911034954,-151.247764,0.00019178,2]
[347540867,1735911034964,-151.0,0.00019178,2]
[347540868,1735911034973,-151.0,0.00019178,2]
[347540869,1735911034982,-151.0,0.00019178,2]
[347540870,1735911034992,-151.0,0.00019178,2]
[347540871,1735911035001,-151.0,0.00019178,2]
[347540872,1735911035010,-151.0,0.00019178,2]
[347540873,1735911035019,-151.0,0.00019178,2]
[347540874,1735911035029,-151.0,0.00019178,2]
[347540875,1735911035038,-151.0,0.00019178,2]
[347540876,1735911035047,-151.0,0.00019178,2]
[347540877,1735911035056,-151.0,0.00019178,2]
[347540878,1735911035065,-151.0,0.00019178,2]
[347540879,1735911035075,-151.0,0.00019178,2]
[347540880,1735911035086,-151.0,0.00019178,2]
[347540881,1735911035095,-151.0,0.00019178,2]
[347540882,1735911035110,-151.0,0.00019178,2]
[347540883,1735911035119,-151.0,0.00019178,2]
[347540884,1735911035128,-151.0,0.00019178,2]
[347540885,1735911035138,-151.0,0.00019178,2]
[347540886,1735911035147,-151.0,0.00019178,2]
[347540887,1735911035156,-151.0,0.00019178,2]